Cogmind - Beta 13 @@@ ROGUE MODE // 2024.06.04 @ 11:29:41 Player: Barbarossa Result: Destroyed by B-75 Beast with Magnetic Acceleration Cannon Performance ------------- Evolutions (4) 2000 Regions Visited (6) 1200 Robots Destroyed (137) 685 Value Destroyed (3831) 3831 Prototype IDs (7) 140 Alien Tech Used (0) 0 Bonus (278) 278 TOTAL SCORE: 8134 Bonus ------- High Alert Combat Kills 127 Follower Combat Kills 278 Friendly Fire -127 Cogmind --------- Core Integrity 0/850 Matter 300/300 Energy 100/100 System Corruption 0% Temperature Cool (12) Movement Rolling (180) Ox6 Location -6/Extension Parts ------- > --- POWER (1) -------- (None) > --- PROPULSION (4) --- Armored Wheel > --- UTILITY (6) ------ Huge Storage Unit Visual Processing Unit > --- WEAPON (4) ------- Katana > --- INVENTORY (25) --- Angular Momentum Engine Fission Core Light Particle Reactor Armored Treads Armored Treads Armored Treads Advanced Heat Sink Advanced Heat Sink Advanced Heat Sink Advanced Heat Sink Coolant Injector High-capacity Battery (250) High-capacity Matter Pod (200) High-capacity Matter Pod (200) Improved Sensor Array Transmission Jammer Hacking Suite Hacking Suite System Restoration Module Improved System Restoration Module Arc Projector Improved Datajack Peak State ------------ > --- POWER ------------ Angular Momentum Engine > --- PROPULSION ------- Carbon-fiber Leg Carbon-fiber Leg Myomer Leg Myomer Leg > --- UTILITY ---------- Advanced Heat Sink Huge Storage Unit Visual Processing Unit Improved Signal Interpreter Phase Shifter Cloaking Device > --- WEAPON ----------- Arc Projector Chainsword Ripper Phasing Sabre > --- INVENTORY -------- Angular Momentum Engine Fission Core Light Particle Reactor Armored Treads Armored Treads Armored Treads Armored Treads Wheel Wheel Armored Wheel Advanced Heat Sink Advanced Heat Sink Advanced Heat Sink Advanced Heat Sink Coolant Injector High-capacity Battery High-capacity Matter Pod High-capacity Matter Pod Improved Sensor Array Transmission Jammer Hacking Suite Hacking Suite System Restoration Module Improved System Restoration Module Improved Datajack [Rating: 72] Favorites ----------- Power Ion Engine Engine Ion Engine Power Core Nuclear Core Reactor Light Particle Reactor Propulsion Armored Treads Treads Armored Treads Leg Aluminum Leg Wheel Wheel Utility Huge Storage Unit Device Advanced Heat Sink Storage Huge Storage Unit Processor Improved Signal Interpreter Protection Improved Light Armor Plating Weapon Improved Assault Rifle Energy Gun Advanced Beam Rifle Energy Cannon Advanced Beam Cannon Ballistic Gun Improved Assault Rifle Ballistic Cannon Improved Light Cannon Slashing Weapon Chainsword Special Melee Weapon Improved Datajack Build | -11 -10 -9 -8 -7 -6 -6 ------- Run | Yrd Mat Mat Mat Fac Fac Ext Slots Evolved 8 | . . 2 2 2 2 . Power . | . . . . . . . Propulsion 2 | . . 2 . . . . Utility 4 | . . . 1 1 2 . Weapon 2 | . . . 1 1 . . Parts Attached 151 | . 22 34 30 3 25 37 Power 13 | . 3 3 3 . 3 1 Engine 10 | . 3 3 2 . 1 1 Core 1 | . . . 1 . . . Reactor 2 | . . . . . 2 . Propulsion 59 | . 6 18 12 . 8 15 Treads 22 | . . 11 7 . 3 1 Leg 5 | . . . . . . 5 Wheel 32 | . 6 7 5 . 5 9 Hover . | . . . . . . . Flight . | . . . . . . . Utility 33 | . 6 1 4 2 9 11 Device 19 | . 2 . 2 1 6 8 Storage 5 | . 3 1 1 . . . Processor 4 | . 1 . 1 . 1 1 Hackware . | . . . . . . . Protection 5 | . . . . 1 2 2 Artifact . | . . . . . . . Weapon 46 | . 7 12 11 1 5 10 Energy Gun 27 | . 7 3 8 . 4 5 Energy Cannon 3 | . . 3 . . . . Ballistic Gun 9 | . . 4 3 1 1 . Ballistic Cannon 2 | . . 2 . . . . Launcher . | . . . . . . . Special Weapon . | . . . . . . . Impact Weapon . | . . . . . . . Slashing Weapon 4 | . . . . . . 4 Piercing Weapon . | . . . . . . . Special Melee Weapon 1 | . . . . . . 1 Unidentified Prototypes 2 | . . 2 . . . . Parts Lost 38 | . 1 5 2 . 9 21 Power 3 | . . 1 . . 1 1 Propulsion 14 | . 1 2 1 . 2 8 Utility 7 | . . . . . 2 5 Weapon 14 | . . 2 1 . 4 7 Highest Loss Streak 14 | . 1 2 1 . 9 14 To Critical Strikes . | . . . . . . . Average Slot Usage (%) 95 | . 93 97 99 100 98 91 Engine 5 | . 14 10 6 . . 3 Core 1 | . . . 2 7 3 . Reactor 1 | . . . . . 2 2 Treads 13 | . . 21 18 15 15 9 Leg 1 | . 7 . . . . 2 Wheel 15 | . 20 21 17 15 10 13 Device 8 | . 3 . 9 7 11 13 Storage 8 | . 14 11 9 7 6 6 Processor 10 | . 4 11 9 7 13 12 Protection 3 | . . . . 7 6 5 Energy Gun 16 | . 27 10 25 . 8 17 Ballistic Gun 5 | . . 5 1 30 17 . Naked Turns . | . . . . . . . Heaviest Build 120 | 10 28 92 97 103 119 120 Greatest Support 80 | 20 32 26 32 26 80 80 Greatest Overweight (x) 9 | . 1 9 7 3 7 9 Average Overweight (x) 3 | . . 3 4 3 2 3 Largest Inventory Capacity 25 | 8 15 25 25 25 25 25 Average Capacity 22 | 8 10 23 25 25 25 25 Most Carried 25 | 6 15 25 25 25 25 25 Average Carried 21 | 6 9 20 24 23 22 24 Final Capacity 25 | 8 15 25 25 25 25 25 Final Carried 25 | 6 15 25 25 25 21 22 Class Distribution -------------------- 28% | Scavenger-Mutant 17% | Scavenger-Skirmisher 16% | Mutant 15% | Scavenger-Tank 9% | Scavenger-Gunner 8% | Gunner 5% | Tank Dominant Class ---------------- Scavenger-Mutant | -10/Materials Mutant | -9/Materials Gunner | -8/Materials Scavenger-Skirmisher | -7/Factory Scavenger-Skirmisher | -6/Factory Scavenger-Mutant | -6/Extension Resources | -11 -10 -9 -8 -7 -6 -6 ----------- Run | Yrd Mat Mat Mat Fac Fac Ext Matter Collected 2563 | 200 507 406 368 . 745 337 Remotely . | . . . . . . . Salvage Created 6049 | . 825 1213 1130 . 1652 1229 Parts 291 | . 46 72 53 . 72 48 Haulers Intercepted 8 | . 2 4 1 . 1 . Recyclers Shooed 7 | . . 4 . . 3 . Parts Field Recycled . | . . . . . . . Retrieved Matter . | . . . . . . . Parts Self-Destructed . | . . . . . . . Prevented . | . . . . . . . Kills | -11 -10 -9 -8 -7 -6 -6 ------- Run | Yrd Mat Mat Mat Fac Fac Ext Combat Hostiles Destroyed 83 | . 8 20 18 . 20 17 Melee 1 | . . . . . . 1 Guns 72 | . 8 14 17 . 19 14 Cannons 6 | . . 6 . . . . Classes Destroyed 13 | . 6 2 2 . 2 1 Worker 20 | . 7 4 1 . 8 . Builder 1 | . . . 1 . . . Hauler 8 | . 2 4 1 . 1 . Recycler 14 | . 2 4 4 . 2 2 Operator 3 | . 1 . 1 . 1 . Watcher 7 | . 2 1 2 . . 2 Swarmer 20 | . . 8 6 . 3 3 Grunt 41 | . 8 6 8 . 12 7 Sentry 16 | . . 6 3 . 2 5 Specialist 2 | . . . . . 2 . Hunter 2 | . . . 1 . . 1 Programmer 1 | . . . . . 1 . Behemoth 1 | . . . . . . 1 Thug 1 | . . . . . . 1 Best Kill Streak 7 | . 6 5 4 . 7 6 Combat Bots Only 6 | . 4 4 4 . 6 6 Max Kills in Single Turn 2 | . 1 1 2 . 2 2 Gunslinging 1 | . . . . . . 1 Exploded . | . . . . . . . Melee 1 | . . . . . . 1 Uniques/NPCs Destroyed . | . . . . . . . Combat | -11 -10 -9 -8 -7 -6 -6 -------- Run | Yrd Mat Mat Mat Fac Fac Ext Hostile Shots Fired 786 | . 48 131 108 . 201 298 Missed 228 | . 13 28 24 . 70 93 Damage Taken 8303 | . 474 1262 1181 . 2173 3213 Core 1160 | . 83 139 86 . 227 625 Absorbed by Shields 25 | . . . . . . 25 Regen/Repaired (Parts) 98 | . 27 71 . . . . Core Remaining (%) 83 | 100 66 65 84 100 . . Volleys Fired 365 | . 60 111 75 . 66 53 Largest 4 | . 2 2 3 . 4 4 Hottest 326 | . 80 100 183 . 326 326 Shots Fired 812 | . 120 169 171 . 223 129 Gun 770 | . 120 127 171 . 223 129 Cannon 42 | . . 42 . . . . Launcher . | . . . . . . . Special . | . . . . . . . Kinetic 184 | . . 14 9 . 161 . Thermal 610 | . 120 155 162 . 62 111 Explosive . | . . . . . . . Electromagnetic 18 | . . . . . . 18 Robot Hit Streak 39 | . 7 11 21 . 39 23 Robot Miss Streak 6 | . 5 5 4 . 3 6 Penetration Max . | . . . . . . . Secondary Targets 9 | . . . 3 . 2 4 Max Gunslinging Chain 1 | . . . 1 . 1 1 Shots Hit Robots 542 | . 61 110 110 . 161 100 Core Hits 238 | . 38 48 40 . 71 41 Critical Kills 6 | . . . . . 3 3 Critical Parts Destroyed 4 | . . . . . 3 1 Critical Strikes 38 | . . 12 11 . 8 7 Burn 26 | . . 12 11 . 2 1 Destroy 10 | . . . . . 6 4 Sever 2 | . . . . . . 2 Melee Attacks 9 | . . . . . . 9 Impact . | . . . . . . . Slashing 9 | . . . . . . 9 Piercing . | . . . . . . . Sneak Attacks 2 | . . . . . . 2 Combat Hostiles . | . . . . . . . Follow-up Attacks 2 | . . . . . . 2 Damage Inflicted 9957 | . 711 1642 2108 . 3002 2494 Guns 8990 | . 706 1020 2108 . 3002 2154 Cannons 622 | . . 622 . . . . Explosions . | . . . . . . . Melee 340 | . . . . . . 340 Ramming 5 | . 5 . . . . . Kinetic 2157 | . . 191 58 . 1908 . Thermal 7292 | . 706 1451 2050 . 1094 1991 Explosive . | . . . . . . . Electromagnetic 163 | . . . . . . 163 Impact . | . . . . . . . Slashing 340 | . . . . . . 340 Piercing . | . . . . . . . Highest Corruption 4 | . . 2 . . 4 . Average Corruption 2 | . . 1 . . 2 . Corruption Purged 4 | . . . . . 4 . Corruption Blocked . | . . . . . . . Overload Shots . | . . . . . . . Overflow Damage 53 | . . . . . . 53 Projectiles . | . . . . . . . Explosions . | . . . . . . . Melee 53 | . . . . . . 53 Knockbacks . | . . . . . . . Impact . | . . . . . . . Kinetic . | . . . . . . . Secondary . | . . . . . . . Self-Inflicted Damage 2 | . 2 . . . . . Shots . | . . . . . . . Rammed 1 | . 1 . . . . . Targets Rammed 1 | . 1 . . . . . Kicked . | . . . . . . . Crushed . | . . . . . . . Highest Temperature 405 | . 244 335 347 . 405 248 Average Temperature 96 | . 73 97 87 . 125 102 Received Heat Transfer 2963 | . 255 402 558 . 708 1040 Effects 9 | . . 4 4 . 1 . Shutdowns 2 | . . 1 . . 1 . Energy Bleed 1 | . . 1 . . . . Interference 5 | . . 1 4 . . . Short Circuit 1 | . . 1 . . . . Siege Activations . | . . . . . . . Robots Corrupted . | . . . . . . . Combat Hostiles . | . . . . . . . Parts Fried 1 | . . . . . . 1 Impact Corruptions . | . . . . . . . Robots Melted 4 | . . . 1 . 1 2 Combat Hostiles 4 | . . . 1 . 1 2 Parts Melted 33 | . 1 11 10 . 3 8 Heat Transferred 16228 | . 1625 4579 4847 . 1858 3319 Parts Sabotaged . | . . . . . . . Parts Stolen . | . . . . . . . Parts Stripped . | . . . . . . . Power Chain Reactions . | . . . . . . . Alert | -11 -10 -9 -8 -7 -6 -6 ------- Run | Yrd Mat Mat Mat Fac Fac Ext Peak Influence 557 | . 149 314 557 233 381 549 Initial 233 | . . 42 32 233 114 146 Average 211 | . 70 151 237 233 197 305 Maximum Alert Level 2 | . . 1 2 1 1 2 Low Security (%) 47 | 100 100 60 47 . 50 20 Level 1 38 | . . 39 17 100 49 50 Level 2 13 | . . . 35 . . 28 Level 3 . | . . . . . . . Level 4 . | . . . . . . . Level 5 . | . . . . . . . High Security . | . . . . . . . Max Security . | . . . . . . . Squads Dispatched 22 | . 2 3 4 . 10 3 Investigation 6 | . 1 2 . . 2 1 Extermination 1 | . . . . . 1 . Reinforcement 9 | . 1 1 2 . 3 2 Assault 1 | . . . 1 . . . Garrison 5 | . . . 1 . 4 . Intercept . | . . . . . . . Searches Triggered . | . . . . . . . Construction Impeded 1 | . . . . . . 1 Haulers Reinforced . | . . . . . . . Active Scanning Responses . | . . . . . . . Cargo Convoy Interrupts . | . . . . . . . Stealth | -11 -10 -9 -8 -7 -6 -6 --------- Run | Yrd Mat Mat Mat Fac Fac Ext Distress Signals 11 | . 1 1 6 . 1 2 Communications Jammed . | . . . . . . . Distress Signals . | . . . . . . . Times Spotted 149 | . 17 32 37 . 27 36 Peak Tracking Total 9 | . 6 6 8 . 9 9 Tactical Retreats 9 | . . 1 3 . . 5 Traps | -11 -10 -9 -8 -7 -6 -6 ------- Run | Yrd Mat Mat Mat Fac Fac Ext Traps Triggered 10 | . 2 5 . . 2 1 Indirectly . | . . . . . . . Trap Hack Attempts 5 | . . . . . . 5 Triggered 1 | . . . . . . 1 Disarmed . | . . . . . . . Reprogrammed . | . . . . . . . Reused . | . . . . . . . Traps Extracted . | . . . . . . . Installed . | . . . . . . . Triggered . | . . . . . . . Machines | -11 -10 -9 -8 -7 -6 -6 ---------- Run | Yrd Mat Mat Mat Fac Fac Ext Machines Disabled 6 | . . . 3 . 2 1 Max in Single Turn 1 | . . . 1 . 1 1 Garrison Access 1 | . . . 1 . . . Machines Repaired . | . . . . . . . Machines Dismantled . | . . . . . . . Machines Sabotaged . | . . . . . . . Overloaded Fab Kills . | . . . . . . . Hacking | -11 -10 -9 -8 -7 -6 -6 --------- Run | Yrd Mat Mat Mat Fac Fac Ext Machines Accessed 28 | . 5 9 2 1 7 4 Terminals 18 | . 4 7 1 . 2 4 Fabricators 3 | . . . . 1 2 . Repair Stations 3 | . 1 1 1 . . . Recycling Units 1 | . . . . . 1 . Scanalyzers 2 | . . 1 . . 1 . Garrison Access 1 | . . . . . 1 . Total Hacks 78 | . 15 32 5 2 18 6 Successful 41 | . 9 18 2 . 10 2 Failed 37 | . 6 14 3 2 8 4 Catastrophic 8 | . . 4 . . 2 2 Database Lockouts . | . . . . . . . Manual 40 | . 13 19 1 . 4 3 Terminals 52 | . 13 24 4 . 5 6 Fabricators 8 | . . . . 2 6 . Repair Stations 5 | . 2 2 1 . . . Recycling Units 1 | . . . . . 1 . Scanalyzers 10 | . . 6 . . 4 . Garrison Access 2 | . . . . . 2 . Terminal Hacks 13 | . 4 5 1 . 2 1 Robot Analysis 2 | . . 1 . . 1 . Prototype ID Bank 3 | . 2 1 . . . . Open Door 2 | . . . . . 1 1 Level Access Points 1 | . . 1 . . . . Unreport Threat 4 | . 2 2 . . . . Locate Traps 1 | . . . 1 . . . Fabricator Hacks 3 | . . . . . 3 . Network Status 1 | . . . . . 1 . Build 2 | . . . . . 2 . Repair Station Hacks 4 | . 2 2 . . . . Scan Component 2 | . 1 1 . . . . Repair 2 | . 1 1 . . . . Recycling Unit Hacks 1 | . . . . . 1 . Report Inventory 1 | . . . . . 1 . Scanalyzer 8 | . . 6 . . 2 . Insert Component 3 | . . 2 . . 1 . Analyze 5 | . . 4 . . 1 . Garrison Access Hacks . | . . . . . . . Unauthorized Hacks 12 | . 3 5 1 . 2 1 Terminals 11 | . 3 5 1 . 1 1 Botnet 11 | . 3 5 1 . 1 1 Fabricators 1 | . . . . . 1 . Download 1 | . . . . . 1 . Repair Stations . | . . . . . . . Recycling Units . | . . . . . . . Scanalyzers . | . . . . . . . Garrison Access . | . . . . . . . Data Cores Recovered . | . . . . . . . Used . | . . . . . . . Hacking Detections 23 | . 5 9 1 1 4 3 Full Trace Events 4 | . . 2 . . 1 1 Feedback Events . | . . . . . . . Feedback Blocked . | . . . . . . . Robot Schematics Acquired . | . . . . . . . Robots Built . | . . . . . . . Authchips . | . . . . . . . Time . | . . . . . . . Total Robot Build Rating . | . . . . . . . Part Schematics Acquired 3 | . . 2 . . 1 . Parts Built 4 | . . . . . 4 . Authchips . | . . . . . . . Time 245 | . . . . . 245 . Total Part Build Rating 30 | . . . . . 30 . Parts Repaired 2 | . 1 1 . . . . Time 64 | . 13 51 . . . . Parts Recycled . | . . . . . . . Recycled Matter . | . . . . . . . Retrieved Matter . | . . . . . . . Retrieved Components . | . . . . . . . Parts Scanalyzed 3 | . . 2 . . 1 . Part Schematics Acquired 3 | . . 2 . . 1 . Parts Damaged . | . . . . . . . Bothacking | -11 -10 -9 -8 -7 -6 -6 ------------ Run | Yrd Mat Mat Mat Fac Fac Ext Used RIF Installer . | . . . . . . . Robots Hacked . | . . . . . . . Non-combat . | . . . . . . . Combat . | . . . . . . . Robot Hacks Applied . | . . . . . . . Relay Couplers Released 2 | . . . 2 . . . Machine Destruction 2 | . . . 2 . . . Fabnet Peak Effective % . | . . . . . . . Robots Rewired 11 | . . . . . . 11 Allies Hacked . | . . . . . . . Hacks Repelled . | . . . . . . . Allies | -11 -10 -9 -8 -7 -6 -6 -------- Run | Yrd Mat Mat Mat Fac Fac Ext Total Allies 12 | . . . . . . 12 Largest Group 5 | . . . . . . 5 Highest-Rated Group 162 | . . . . . . 162 Highest-Rated Ally 39 | . . . . . . 39 Total Orders 1 | . . . . . . 1 AID 1 | . . . . . . 1 Ally Attacks 93 | . . . . . . 93 Total Damage 1339 | . . . . . . 1339 Kills 11 | . . . . . . 11 Allies Corrupted . | . . . . . . . Allies Melted . | . . . . . . . Intel | -11 -10 -9 -8 -7 -6 -6 ------- Run | Yrd Mat Mat Mat Fac Fac Ext Robot Analysis Total 2 | . . 1 . . 1 . Derelict Logs Recovered . | . . . . . . . Drone Launches . | . . . . . . . Drone Recoveries . | . . . . . . . Exploration | -11 -10 -9 -8 -7 -6 -6 ------------- Run | Yrd Mat Mat Mat Fac Fac Ext Turns Passed 6034 | 3 723 1091 988 155 1381 1693 Spaces Moved 2865 | 3 432 493 425 110 604 798 Core . | . . . . . . . Treads 80 | . . . . . 80 . Legs 142 | 3 84 . . . . 55 Wheels 2643 | . 348 493 425 110 524 743 Hover . | . . . . . . . Flight . | . . . . . . . Fastest Speed 80 | 120 80 95 130 135 135 110 Average Speed 140 | 120 96 135 154 135 156 147 Slowest Speed 260 | 120 120 215 195 135 250 260 Overloaded Moves . | . . . . . . . Propulsion Burnouts . | . . . . . . . Robots Hopped . | . . . . . . . Cave-ins Triggered . | . . . . . . . Exploration Rate (%) 32 | 2 68 43 42 4 14 54 Regions Visited 6 Branch Regions 1 Pre-discovered Areas . | . . . . . . . Known Exits Taken 5 | . 1 1 1 1 1 . Unknown Exits Taken 1 | 1 . . . . . . Scrap Searched . | . . . . . . . Spaces Dug . | . . . . . . . Terrain Destroyed 1 | . . 1 . . . . Melee . | . . . . . . . Projectile 1 | . . 1 . . . . AOE . | . . . . . . . Terrain Rammed . | . . . . . . . Walls Destroyed . | . . . . . . . Machines Disabled . | . . . . . . . Actions | -11 -10 -9 -8 -7 -6 -6 --------- Run | Yrd Mat Mat Mat Fac Fac Ext Total 4181 | 2 622 751 608 116 893 1189 Wait 489 | . 72 57 34 . 168 158 Move 2859 | 2 431 492 424 109 603 798 Hop . | . . . . . . . Pick Up 103 | . 17 31 17 3 15 20 Fast Attach 25 | . 4 11 1 . 1 8 Attach 42 | . 3 10 4 2 13 10 Detach 3 | . . . . . 2 1 Swap 84 | . 15 13 25 1 11 19 Drop 109 | . 19 26 28 1 14 21 Fire 365 | . 60 111 75 . 66 53 Melee 7 | . . . . . . 7 Ram 1 | . 1 . . . . . Kick . | . . . . . . . Crush . | . . . . . . . Escape Stasis 15 | . . . . . . 15 Rewire 74 | . . . . . . 74 Trap 5 | . . . . . . 5 Miscellaneous . | . . . . . . . Route ------- -11/Scrapyard -10/Materials (discovered 3 exits: *Mat / [*Min x2]) -9/Materials (discovered 4 exits: *Mat x3 / *Min) -8/Materials -7/Factory -6/Factory -6/Extension History --------- Turn | Location | Event 1 | -11/Scrapyard | Discovered new exit (range 0) 4 | -11/Scrapyard | Entered Materials 318 | -10/Materials | Build established: Mutant 348 | -10/Materials | Discovered new exit (range 16) 523 | -10/Materials | Repaired Sml. Laser 613 | -10/Materials | Discovered new exit (range 9) 641 | -10/Materials | Build established: Scavenger-Mutant 705 | -10/Materials | Discovered new exit (range 16) 724 | -10/Materials | Identified exit to Materials 727 | -10/Materials | Entered another Materials area 727 | -9/Materials | Evolved 2 slots: Propulsion x2 1002 | -9/Materials | Build established: Mutant 1027 | -9/Materials | Discovered new exit (range 6) 1082 | -9/Materials | Identified exit to Mines 1448 | -9/Materials | Repaired Imp. Assault Rifle 1609 | -9/Materials | Build established: Scavenger-Mutant 1626 | -9/Materials | Identified exit to Materials 1818 | -9/Materials | Entered another Materials area 1818 | -8/Materials | Evolved 2 slots: Utility x1, Weapon x1 2154 | -8/Materials | Build established: Gunner 2301 | -8/Materials | Garrison activated, responded to threat 2503 | -8/Materials | Build established: Scavenger-Gunner 2768 | -8/Materials | Discovered new exit (range 6) 2805 | -8/Materials | Identified exit to Factory 2806 | -8/Materials | Entered Factory 2806 | -7/Factory | Evolved 2 slots: Utility x1, Weapon x1 2897 | -7/Factory | Discovered new exit (range 9) 2915 | -7/Factory | Identified exit to Factory 2961 | -7/Factory | Entered another Factory area 2961 | -6/Factory | Evolved 2 slots: Utility x2 3111 | -6/Factory | Build established: Scavenger-Skirmisher 3280 | -6/Factory | Fabricated Dispersion Rifle (x2) 3523 | -6/Factory | Garrison activated, responded to threat 3661 | -6/Factory | Fabricated Lgt. Particle Reactor (x2) 3751 | -6/Factory | Discovered new exit (range 10) 3864 | -6/Factory | Garrison activated, responded to threat 3915 | -6/Factory | Lost 9 parts (1p2n2u4w) 4190 | -6/Factory | Build established: Tank 4341 | -6/Factory | Identified exit to Extension 4342 | -6/Factory | Entered Extension 4354 | -6/Extension | Disrupted transfer network 4490 | -6/Extension | Build established: Scavenger-Tank 4744 | -6/Extension | Rescued a captive Derelict 4917 | -6/Extension | Lost 3 allies 4951 | -6/Extension | Lost 4 parts (1n1u2w) 5013 | -6/Extension | Spotted B-75 Beast 5117 | -6/Extension | Lost 4 allies 5415 | -6/Extension | Build established: Scavenger-Mutant 5566 | -6/Extension | Spotted B-75 Beast 5989 | -6/Extension | Core integrity fell below 50% 6026 | -6/Extension | Destroyed B-75 Beast 6027 | -6/Extension | Core integrity fell below 20% 6035 | -6/Extension | Destroyed by B-75 Beast with Magnetic Acceleration Cannon Last Messages --------------- 06002_ Adv. Heat Sink destroyed. 06004_ Chainsword destroyed. 06004_ Ripper destroyed. 06004_ Myomer Leg destroyed. 06008_ Acquired 3 matter. 06008_ Cloaking Device destroyed. 06008_ Imp. Signal Interpreter destroyed. 06010_ Wheel destroyed. 06010_ Knocked back. 06016_ Angular Momentum Engine destroyed. 06016_ Knocked back. 06018_ Phasing Sabre follow-up attack on B-75 Beast. 06018_ B-75 Beast Rnf. Deuterium Engine severed. 06021_ B-75 Beast Imp. Medium Treads severed. 06026_ Wheel destroyed. 06026_ Knocked back. 06026_ B-75 Beast destroyed. 06029_ Acquired 8 matter. 06029_ Phasing Sabre destroyed. Map ----- +----------------------------------------------------+ | %%%%=! * #??????????????????????? | | ################## #??????????????????????? | | ?????????????????##### ! #??????????????????????? | | ?????????????????????#! % #??????????????????????? | | ?????????????????????#*=%[#??????????????????????? | | ?????????????????????#%!!!#??????????????????????? | | ?????????????????#####+##%#??????????????????????? | | ?????????????????# !! %#=#??????????????????????? | | ?????????????????# =[!#%#??????????????????????? | | ?????????????????# [= +%#??????????????????????? | | ?????????????????# =%# #??????????????????????? | | ?????????????????# = [# #??????????????????????? | | ?????????????????# * #%#??????????????????????? | | ?????????????????########%#??????????????????????? | | ??????????????????????###R#??##?##???????????????? | | ??????????????????????#;#!### ## ### #???????????? | | ?????????????????????##!%%[=% "" ""#?????????? | | ?????????????????????##!!%*! R " " #?????????? | | ?????????????????????#;%![R* #?????????? | | ??????????????????????#=%| R #?????????? | | #######################*= ##????????? | | % % ???????? | | ???????? | | BB ??????? | | % % % %BB] ??????? | | % @*! ??????? | | #######################% *!! #?????????? | | ?????????????????????#; #?????????? | | ?????????????????????## % #?????????? | | ??????????????????????# #?????????? | | ??????????????????????# #?????????? | | ??????????????????????######T#"""#######?????????? | | ????????????????????????????##???????????????????? | | ?????????????????????????????????????????????????? | | | | | | | | | | | | | | | | | | | | | | | | | | | | | | | | | +----------------------------------------------------+ Best States ------------- Heat Dissipation 75 Coolant Potential 65 Energy Generation 23 Energy Capacity 300 Matter Stores 300 Matter Capacity 300 Sight Range 18 Robot Scan Range 16 Terrain Scan Density 10 Cloak Strength 2 Armor Coverage 225 Phase Shifting 5 Evasion (%) 55 Recoil Reduction 4 Item Schematics ----------------- Imp. Assault Rifle | -9/Materials | Scanalyzed Imp. Light Cannon | -9/Materials | Scanalyzed Dispersion Rifle | -6/Factory | Scanalyzed Robot Schematics ------------------ None Fabricated ------------ Dispersion Rifle | x2 | -6/Factory | Preloaded Lgt. Particle Reactor | x2 | -6/Factory | Preloaded Alien Tech Used ----------------- None Achievements -------------- None Challenges ------------ None Game ------ Seed BurstImprinterRedirector Manual? 0 Play Time 00:56:29 Cumulative 204.4 hours Start 2024.06.04 @ 10:31:18 End 2024.06.04 @ 11:29:41 Sessions 1 Manual Loads 0 Difficulty Rogue Special Mode None Game No. 372 Rogue 372 Adventurer 0 Explorer 0 Win Type - Total 0 Types 0/0/0/0/0/0/0/0/0 Lore% 45 Gallery% 56 Achievement% 39 Wizard Run 0 Options --------- Layout 1 ASCII 0 Keyboard 0 Movement Mouse Keybinds 0 Fullscreen 1 Font 24/Smallcaps Map View 50x40 Zoom Use 0% Tactical HUD 1 Map Filters NONE Filters NONE Steam 1 RUN: d8817261-9545-4bb9-8ca2-7eb277a0e0b5